bitfinex/quotes_ETHUSD_20230701
["timestamp","ask_amount","ask_price","bid_price","bid_amount"]
[1688241919007,2.68752184,1924.5,1924.1,3.0432]
[1688241919164,5.19643,1924.4,1924.1,0.48]
[1688241920800,14.81668002,1924.5,1924.1,0.48]
[1688241924504,14.81668002,1924.5,1924.1,5.67723]
[1688241925216,9.62037002,1924.5,1924.1,5.67723]
[1688241925897,9.62037002,1924.5,1924.1,0.48]
[1688241926081,9.62037002,1924.5,1924.0,15.59962]
[1688241926281,9.62037002,1924.5,1924.0,14.65262]
[1688241926488,11.25597002,1924.5,1924.0,14.65262]
[1688241928173,11.25597002,1924.5,1924.0,17.25137]
[1688241928775,11.25597002,1924.5,1924.0,19.260347]
[1688241928978,9.51934184,1924.5,1924.0,19.260347]
[1688241929603,4.32312184,1924.5,1924.0,19.260347]
[1688241932715,0.00283988,1924.4,1924.0,19.260347]
[1688241951749,0.00283988,1924.4,1924.2,10.39392]
[1688241951955,0.00283988,1924.4,1924.2,12.9924]
[1688241952253,0.00283988,1924.4,1924.3,11.69262]
[1688241952453,0.01654914,1924.6,1924.3,11.69262]
[1688241952650,0.01654914,1924.6,1924.3,10.39338]
[1688241953521,0.00284951,1924.5,1924.3,10.39338]
[1688241958270,0.00284951,1924.5,1924.3,5.19669]
[1688241958427,10.39525951,1924.5,1924.2,5.19685]
[1688241958930,10.39525951,1924.5,1924.1,5.19706]
[1688241959124,12.01935951,1924.5,1924.2,0.48]
[1688241970605,12.01935951,1924.5,1924.2,5.67695]
[1688241971105,12.01935951,1924.5,1924.2,0.48]
[1688241984417,16.29875738,1924.5,1924.0,2.6]
[1688241989334,16.29875738,1924.5,1924.0,7.79747]
[1688241989638,16.29875738,1924.5,1924.0,14.50597]
[1688241989639,14.61742951,1924.5,1924.0,14.50597]
[1688241998810,14.61742951,1924.5,1924.0,9.30847]
[1688241999370,14.61742951,1924.5,1924.0,14.50597]
[1688242000354,12.01935951,1924.5,1924.0,14.50597]
[1688242001853,12.01935951,1924.5,1924.0,17.10472]
[1688242002157,12.01935951,1924.5,1924.0,18.86974044]
[1688242008547,12.01935951,1924.5,1924.1,0.90314371]
[1688242008749,12.01935951,1924.5,1924.1,6.10019371]
[1688242009057,12.01935951,1924.5,1924.1,5.19705]
[1688242010749,12.01935951,1924.5,1924.0,14.50586]
[1688242010950,13.70068838,1924.5,1924.0,14.50586]
[1688242013064,12.01935951,1924.5,1924.0,14.50586]
[1688242014248,12.01935951,1924.5,1924.1,0.90314621]
[1688242014447,12.01935951,1924.5,1924.1,6.10027621]
[1688242014647,12.01935951,1924.5,1924.1,5.19713]
[1688242018803,12.01935951,1924.5,1924.1,10.39436]
[1688242019170,13.70068838,1924.5,1924.1,10.39436]
[1688242019396,13.70068838,1924.5,1924.0,9.30837]
[1688242019597,13.70068838,1924.5,1924.1,0.90314762]
[1688242019802,13.70068838,1924.5,1924.0,9.30837]
[1688242021108,13.70068838,1924.5,1924.0,14.50587]
[1688242021782,13.70068838,1924.5,1924.0,16.27089244]
[1688242022104,12.01935951,1924.5,1924.0,16.27089244]
[1688242026240,14.61742951,1924.5,1924.0,16.27089244]
[1688242031955,14.61742951,1924.5,1924.1,0.90315212]
[1688242032316,14.61742951,1924.5,1924.1,6.10036212]
[1688242032529,14.61742951,1924.5,1924.0,14.50569]
[1688242032836,16.29876738,1924.5,1924.0,9.30832]
[1688242036793,18.98628922,1924.5,1924.0,9.30832]
[1688242041510,18.98628922,1924.5,1924.0,2.6]
[1688242042911,18.98628922,1924.5,1924.0,7.7975]
[1688242043266,18.98628922,1924.5,1924.0,2.6]
[1688242043462,5.19674,1924.3,1924.0,2.6]
[1688242043663,5.19674,1924.3,1924.0,7.79748]
[1688242044525,0.00282061,1924.2,1924.0,7.79748]
[1688242048928,0.00282061,1924.2,1924.0,12.99498]
[1688242050511,0.00282061,1924.2,1924.0,7.79748]
[1688242064567,0.00282061,1924.2,1924.0,12.99498]
[1688242074471,0.00282061,1924.2,1924.0,7.79748]
[1688242080700,0.00282061,1924.2,1924.0,12.99498]
[1688242081600,0.00282061,1924.2,1924.0,2.6]
[1688242082107,0.00282061,1924.2,1924.0,7.79741]
[1688242082308,0.00282061,1924.2,1924.0,12.99491]
[1688242086809,3.21029851,1924.2,1924.0,2.6]
[1688242086963,16.20269851,1924.2,1924.0,2.6]
[1688242087168,2.68752184,1924.1,1924.0,2.6]
[1688242087573,7.88761728,1924.1,1924.0,2.6]
[1688242087769,2.69038728,1924.1,1924.0,2.6]
[1688242087979,3.01142161,1924.1,1924.0,2.6]
[1688242088508,0.00286544,1924.1,1924.0,2.6]
[1688242089516,10.9306252,1924.2,1924.0,2.6]
[1688242089688,13.61814704,1924.2,1924.0,2.6]
[1688242090570,0.00284788,1924.1,1924.0,2.6]
[1688242091577,13.61814704,1924.2,1924.0,2.6]
[1688242092314,8.42103704,1924.2,1924.0,2.6]
[1688242092625,0.00285448,1924.1,1924.0,2.6]
[1688242093636,13.61814704,1924.2,1924.0,2.6]
[1688242094532,0.00285448,1924.1,1924.0,2.6]
[1688242095701,6.55933015,1924.1,1924.0,2.6]
[1688242095908,9.24685199,1924.1,1924.0,2.6]
[1688242096139,4.78272,1924.4,1924.0,2.6]
[1688242096421,10.39348,1924.3,1924.0,2.6]
[1688242096628,10.39635374,1924.3,1924.0,2.6]
[1688242096924,13.08387558,1924.3,1924.0,2.6]
[1688242097084,5.19723,1924.1,1924.0,2.6]
[1688242097641,5.20008448,1924.1,1924.0,2.6]
[1688242098086,0.00285448,1924.1,1924.0,2.6]
[1688242098481,10.39731448,1924.1,1924.0,2.6]
[1688242098712,10.39446,1924.1,1924.0,2.6]
[1688242098914,5.19723,1924.1,1924.0,2.6]
[1688242099606,5.20008448,1924.1,1924.0,2.6]
[1688242102346,10.39731448,1924.1,1924.0,2.6]
[1688242104435,11.69689493,1924.1,1924.0,2.6]
[1688242108440,6.49966493,1924.1,1924.0,2.6]
[1688242108645,11.69689493,1924.1,1924.0,2.6]
[1688242110327,10.39731448,1924.1,1924.0,2.6]
[1688242113137,12.99592448,1924.1,1924.0,2.6]
[1688242113342,5.20008448,1924.1,1924.0,2.6]
[1688242113660,10.39731448,1924.1,1924.0,2.6]
[1688242113811,12.99592448,1924.1,1924.0,2.6]
[1688242114016,14.29551693,1924.1,1924.0,2.6]
[1688242116065,11.69690693,1924.1,1924.0,2.6]
[1688242116569,14.29551693,1924.1,1924.0,2.6]
[1688242117164,11.69690693,1924.1,1924.0,2.6]
[1688242117347,10.48621632,1924.1,1924.0,2.6]
[1688242117525,15.68344632,1924.1,1924.0,2.6]
[1688242135137,16.18344632,1924.1,1924.0,2.6]
[1688242135285,17.12944632,1924.1,1924.0,2.6]
[1688242135485,20.12944632,1924.1,1924.0,2.6]
[1688242135835,22.49879787,1924.1,1924.0,2.6]
[1688242154266,21.55279787,1924.1,1924.0,2.6]
[1688242159385,27.01879787,1924.1,1924.0,2.6]
[1688242165914,26.99879787,1924.1,1924.0,2.6]
[1688242166207,21.53279787,1924.1,1924.0,2.6]
[1688242166413,19.16344632,1924.1,1924.0,2.6]
[1688242167471,19.16344632,1924.1,1924.0,2.55]
[1688242184227,19.16344632,1924.1,1923.8,1.5656]
[1688242184430,19.16344632,1924.1,1923.7,1.02236703]
[1688242184431,5.68752184,1924.0,1923.7,1.02236703]
[1688242184631,12.99442,1923.9,1923.7,1.02236703]
[1688242184786,2.68752184,1923.8,1923.7,1.02236703]
[1688242184992,15.68262184,1923.8,1923.7,1.02236703]
[1688242185730,15.68544306,1923.8,1923.7,1.02236703]
[1688242189855,15.68544306,1923.8,1923.7,3.62236703]
[1688242207113,0.00282122,1923.8,1923.7,3.62236703]
[1688242207278,0.00282122,1923.8,1923.7,3.98460373]
[1688242207599,0.00282122,1923.8,1923.7,9.18291373]
[1688242207789,5.19804,1923.8,1923.7,9.18291373]
[1688242207968,5.19804,1923.8,1923.7,3.98460373]
[1688242208688,5.200914,1923.8,1923.7,3.98460373]
[1688242209091,10.398954,1923.8,1923.7,3.98460373]
[1688242209978,10.398954,1923.8,1923.7,1.38460373]
[1688242215304,10.398954,1923.8,1923.7,1.02236703]
[1688242215512,12.997974,1923.8,1923.7,1.02236703]
[1688242220858,12.997974,1923.8,1923.7,0.07836703]
[1688242227686,5.200914,1923.8,1923.7,0.07836703]
[1688242227888,0.002874,1923.8,1923.7,0.07836703]
[1688242228093,0.002874,1923.8,1923.7,11.41598703]
[1688242228394,0.002874,1923.8,1923.7,12.55758573]
[1688242228598,10.39481,1924.1,1923.7,12.55758573]
[1688242228831,10.39481,1924.1,1923.8,0.941]
[1688242229007,10.39481,1924.1,1923.8,6.13897]
[1688242229728,0.00285695,1924.0,1923.8,6.13897]
[1688242229935,0.00285695,1924.0,1923.9,0.613897]
[1688242232124,10.39785695,1924.0,1923.8,0.941]
[1688242232433,10.39785695,1924.0,1923.7,3.82696573]
[1688242232732,10.39997895,1924.0,1923.7,2.16696573]
[1688242234132,13.08750079,1924.0,1923.7,1.02536703]
[1688242234319,15.68625079,1924.0,1923.7,0.07836703]
[1688242246031,2.68752184,1923.9,1923.7,0.07836703]
[1688242246237,5.19804,1923.8,1923.7,0.07836703]
[1688242246648,5.20299991,1923.8,1923.7,0.07836703]
[1688242248768,0.00495991,1923.8,1923.7,0.07836703]
[1688242249052,0.00495991,1923.8,1923.7,11.00267873]
[1688242249619,10.41115914,1924.1,1923.7,11.00267873]
[1688242250740,0.00497896,1924.0,1923.7,11.00267873]
[1688242251287,5.20249896,1924.0,1923.7,11.00267873]
[1688242251843,10.40001896,1924.0,1923.7,11.00267873]
[1688242259317,5.20249896,1924.0,1923.8,1.10026787]
[1688242259537,5.20249896,1924.0,1923.8,5.19801]
[1688242260263,10.39999896,1924.0,1923.8,5.19801]
[1688242260414,10.39999896,1924.0,1923.7,10.47488703]
[1688242273665,10.39999896,1924.0,1923.7,5.27657703]
[1688242279415,10.39999896,1924.0,1923.7,10.47488703]
[1688242291139,10.39999896,1924.0,1923.7,10.88630596]
[1688242292143,0.00497896,1924.0,1923.7,15.94214356]
[1688242292294,0.00497896,1924.0,1923.9,10.39554]
[1688242292605,5.19716,1924.2,1923.9,10.39554]
[1688242292936,10.39432,1924.2,1923.9,10.39554]
[1688242293800,0.00498848,1924.1,1923.9,10.39554]
[1688242294000,0.00498848,1924.1,1924.0,1.039554]
[1688242294199,0.00498848,1924.1,1923.9,10.39554]
[1688242294642,10.39432,1924.2,1923.9,10.39554]
[1688242294941,5.19716,1924.2,1923.9,10.39554]
[1688242295640,0.00498848,1924.1,1923.9,10.39554]
[1688242296429,5.20223848,1924.1,1923.9,10.39554]
[1688242296635,5.20223848,1924.1,1923.9,11.859166]
[1688242297931,5.20223848,1924.1,1923.9,6.661396]
[1688242299435,5.20223848,1924.1,1923.9,5.19777]
[1688242302458,5.20223848,1924.1,1923.9,5.61764959]
[1688242304449,5.20223848,1924.1,1923.9,0.41987959]
[1688242304840,5.20223848,1924.1,1923.8,12.03751]
[1688242305361,5.20223848,1924.1,1923.8,10.39581]
[1688242305930,5.20223848,1924.1,1923.8,11.94880746]
[1688242306664,5.20223848,1924.1,1923.8,12.35685766]
[1688242308358,5.20223848,1924.1,1923.8,7.15891766]
[1688242314270,10.39948848,1924.1,1923.8,0.4080502]
[1688242314444,10.39948848,1924.1,1923.7,0.07836703]
[1688242314647,12.06788848,1924.1,1923.7,5.27666703]
[1688242315092,14.75541032,1924.1,1923.7,0.07836703]
[1688242315557,14.75541032,1924.1,1923.7,5.27662703]
[1688242315758,16.70534935,1924.1,1923.7,5.27662703]
[1688242316660,16.70534935,1924.1,1923.7,10.47493703]
[1688242328094,1.67338848,1924.1,1923.7,10.47493703]
[1688242329388,6.87063848,1924.1,1923.7,10.47493703]
[1688242331809,6.87063848,1924.1,1923.7,13.07408703]
[1688242331981,1.67338848,1924.1,1923.7,13.07408703]
[1688242333088,6.87063848,1924.1,1923.7,13.07408703]
[1688242334672,2.68752184,1924.0,1923.7,0.07836703]
[1688242334873,10.39554,1923.9,1923.7,0.07836703]
[1688242335104,12.99442,1923.9,1923.7,0.07836703]
[1688242335490,15.68194184,1923.9,1923.7,0.07836703]
[1688242335699,1.57316007,1923.8,1923.7,0.07836703]
[1688242336010,14.65676191,1923.8,1923.7,0.07836703]
[1688242336712,4.26068191,1923.8,1923.7,0.07836703]
[1688242336913,13.08856773,1923.8,1923.7,0.07836703]
[1688242337474,7.89052773,1923.8,1923.7,0.07836703]
[1688242337884,13.08856773,1923.8,1923.7,0.07836703]
[1688242362568,10.40104589,1923.8,1923.7,0.07836703]
[1688242362774,0.00496589,1923.8,1923.7,0.07836703]
[1688242362930,0.00496589,1923.8,1923.7,5.80435273]
[1688242363129,0.00496589,1923.8,1923.7,0.60604273]
[1688242363867,5.19779,1923.9,1923.7,0.60604273]
[1688242364065,5.19804,1923.8,1923.7,5.80435273]
[1688242364857,5.20299991,1923.8,1923.7,5.80435273]
[1688242365580,5.20299991,1923.8,1923.7,0.60604273]
[1688242373256,5.20299991,1923.8,1923.7,0.07836703]
[1688242388673,10.40103991,1923.8,1923.7,0.07836703]
[1688242400326,0.00495991,1923.8,1923.7,0.07836703]
[1688242400667,0.00495991,1923.8,1923.7,5.27667703]
[1688242400833,5.19786,1923.9,1923.7,5.27667703]
[1688242401037,12.12084914,1924.0,1923.7,5.27667703]
[1688242401316,14.80837098,1924.0,1923.7,5.27667703]
[1688242401768,0.00477698,1923.9,1923.7,5.27667703]
[1688242402073,5.20262698,1923.9,1923.7,5.27667703]
[1688242407565,10.40047698,1923.9,1923.7,5.27667703]
[1688242410724,10.40047698,1923.9,1923.7,0.07836703]
[1688242421739,0.00458372,1923.8,1923.7,0.07836703]
[1688242421904,5.20262372,1923.8,1923.7,0.07836703]
[1688242426803,0.00458372,1923.8,1923.7,0.07836703]
[1688242427813,10.39578,1923.9,1923.7,0.07836703]
[1688242428854,0.00458372,1923.8,1923.7,0.07836703]
[1688242429746,10.39578,1923.9,1923.7,0.07836703]
[1688242430812,0.00458372,1923.8,1923.7,0.07836703]
[1688242431012,5.20262372,1923.8,1923.7,0.07836703]
[1688242445086,0.00458372,1923.8,1923.7,0.07836703]
[1688242445256,0.00458372,1923.8,1923.7,5.27667703]
[1688242445882,10.39577,1923.9,1923.7,5.27667703]
[1688242446880,0.00458372,1923.8,1923.7,5.27667703]
[1688242447864,10.39576,1923.9,1923.7,5.27667703]
[1688242448780,0.00458372,1923.8,1923.7,5.27667703]
[1688242449745,10.39576,1923.9,1923.7,5.27667703]
[1688242450049,5.19785,1923.9,1923.7,5.27667703]
[1688242450753,0.00458372,1923.8,1923.7,5.27667703]
[1688242451782,10.39581,1923.9,1923.7,5.27667703]
[1688242452094,10.39581,1923.9,1923.7,5.27458661]
[1688242452256,5.19785,1923.9,1923.7,5.27458661]
[1688242452462,5.19677,1924.3,1923.7,15.06835127]
[1688242452660,13.08117184,1924.3,1923.7,14.02104661]
[1688242452965,0.00458372,1923.8,1923.7,14.02104661]
[1688242453165,0.00458372,1923.8,1923.7,14.92434999]
[1688242453370,0.00458372,1923.8,1923.7,16.81686343]
[1688242453755,10.39423,1924.2,1923.7,18.43306343]
[1688242453989,10.39423,1924.2,1923.7,17.52976005]
[1688242454773,0.0046123,1924.1,1923.7,17.52976005]
[1688242455672,10.39423,1924.2,1923.7,17.52976005]
[1688242455871,10.39423,1924.2,1923.8,1.75297601]
[1688242456109,10.39423,1924.2,1923.9,5.19772]
[1688242456700,0.0046123,1924.1,1923.9,5.19772]
[1688242457781,10.39423,1924.2,1923.9,5.19772]
[1688242458676,0.0046123,1924.1,1923.9,5.19772]
[1688242459707,5.19709,1924.2,1923.9,5.19772]
[1688242460707,0.0046123,1924.1,1923.9,5.19772]
[1688242460879,0.0046123,1924.1,1923.9,6.5648526]
[1688242461798,10.3942,1924.2,1923.9,11.7626226]
[1688242462005,10.3942,1924.2,1923.9,10.39549]
[1688242462807,0.0046123,1924.1,1923.9,10.39549]
[1688242463887,10.39418,1924.2,1923.9,10.39549]
[1688242464768,0.0046123,1924.1,1923.9,10.39549]
[1688242465821,5.19709,1924.2,1923.9,10.39549]
[1688242466890,0.0046123,1924.1,1923.9,10.39549]
[1688242467727,5.19709,1924.2,1923.9,10.39549]
[1688242468416,7.34357037,1924.3,1923.9,11.84722]
[1688242468727,5.19644,1924.4,1923.9,15.3951]
[1688242468986,0.00462182,1924.2,1923.9,15.9803]
[1688242469828,5.19644,1924.4,1923.9,15.9803]
[1688242470034,5.19644,1924.4,1924.0,1.59803]
[1688242470201,5.19644,1924.4,1924.1,5.19719]
[1688242470801,0.00445334,1924.3,1924.1,5.19719]
[1688242473958,0.00445334,1924.3,1924.1,10.39442]
[1688242477850,0.00445334,1924.3,1924.1,5.19719]
[1688242478861,0.00445334,1924.3,1924.1,10.39442]
[1688242487758,12.10404,1924.5,1924.1,10.39442]
[1688242487964,16.51782771,1924.5,1924.1,10.39442]
[1688242488829,0.00446286,1924.4,1924.1,10.39442]
[1688242505108,0.00446286,1924.4,1924.1,13.93403]
[1688242505306,0.00446286,1924.4,1924.2,0.947]
[1688242505505,0.00446286,1924.4,1924.3,12.99172]
[1688242505705,0.00446286,1924.4,1924.3,14.521332]
[1688242505874,7.43975,1924.8,1924.3,14.521332]
[1688242506074,2.2443,1924.8,1924.3,14.521332]
[1688242506275,1.6899,1924.9,1924.3,14.521332]
[1688242506583,5.19493,1925.0,1924.3,14.521332]
[1688242506802,0.00433478,1924.8,1924.4,2.3991332]
[1688242506973,0.00433478,1924.8,1924.5,10.39194]
[1688242507607,0.00433478,1924.8,1924.5,12.99001]
[1688242507816,5.19415,1925.3,1924.6,1.422]
[1688242507995,7.42755,1925.2,1924.8,5.19532]
[1688242508311,13.80907718,1925.2,1924.6,11.33342]
[1688242508501,12.62192,1925.2,1924.7,5.19553]
[1688242508814,1.76070173,1925.1,1924.7,5.19553]
[1688242511514,10.39042,1924.9,1924.4,1.4521332]
[1688242511703,5.19513,1924.9,1924.4,6.0918332]
[1688242511907,10.39042,1924.9,1924.5,0.60918332]
[1688242512298,14.20532,1924.9,1924.5,0.60918332]
[1688242512821,0.00417319,1924.8,1924.5,0.60918332]
[1688242513533,5.19953319,1924.8,1924.5,0.60918332]
[1688242515334,0.00417319,1924.8,1924.5,0.60918332]
[1688242515842,14.20529,1924.9,1924.5,0.60918332]
[1688242516836,0.00417319,1924.8,1924.5,0.60918332]
[1688242517715,14.20529,1924.9,1924.5,0.60918332]
[1688242518305,14.2053,1924.9,1924.5,0.60918332]
[1688242518829,0.00417319,1924.8,1924.5,0.60918332]
[1688242519633,5.19953319,1924.8,1924.5,5.80531332]
[1688242519833,5.19536,1924.8,1924.5,5.80531332]
[1688242520691,0.00416367,1924.7,1924.5,5.80531332]
[1688242520930,0.00416367,1924.7,1924.6,0.58053133]
[1688242521742,9.01003,1924.9,1924.6,0.58053133]
[1688242521892,9.01003,1924.9,1924.5,11.00144332]
[1688242522838,0.00417319,1924.8,1924.5,11.00144332]
[1688242523806,14.20524,1924.9,1924.5,11.00144332]
[1688242524728,9.01003,1924.9,1924.5,11.00144332]
[1688242524905,0.00417319,1924.8,1924.5,11.00144332]
[1688242525526,0.00417319,1924.8,1924.5,5.80531332]
[1688242525900,9.01003,1924.9,1924.5,5.80531332]
[1688242526835,0.00417319,1924.8,1924.5,5.80531332]
[1688242527834,9.01003,1924.9,1924.5,5.80531332]
[1688242528901,0.00417319,1924.8,1924.5,5.80531332]
[1688242529937,9.01003,1924.9,1924.5,5.80531332]
[1688242530139,9.01003,1924.9,1924.5,5.19613]
[1688242530840,0.00417319,1924.8,1924.5,5.19613]
[1688242531741,9.01003,1924.9,1924.5,5.19613]
[1688242532949,0.00817565,1924.8,1924.5,5.19613]
[1688242533843,14.20522,1924.9,1924.5,5.19613]
[1688242534244,9.01003,1924.9,1924.5,5.19613]
[1688242534441,14.20519,1924.9,1924.5,5.19613]
[1688242534644,9.01003,1924.9,1924.5,5.19613]
[1688242534952,0.00817523,1924.8,1924.5,6.54455132]
[1688242535720,9.01003,1924.9,1924.5,6.54455132]
[1688242536837,0.00785948,1924.8,1924.5,6.54455132]
[1688242537150,0.00785948,1924.8,1924.5,11.74070132]
[1688242537514,0.00785948,1924.8,1924.6,0.947]
[1688242537756,0.00785948,1924.8,1924.7,5.19561]
[1688242538051,6.95217,1925.3,1924.7,7.905436]
[1688242538225,2.68752184,1925.2,1924.7,6.77161]
[1688242538420,2.68752184,1925.2,1924.7,11.96722]
[1688242538813,0.0078874,1925.1,1924.7,11.96722]
[1688242539818,2.68752184,1925.2,1924.7,11.96722]
[1688242540735,0.007864,1925.1,1924.7,11.96722]
[1688242540946,0.007864,1925.1,1924.8,1.196722]
[1688242541962,2.68752184,1925.2,1924.8,1.196722]
[1688242542836,0.00755278,1925.1,1924.8,1.196722]
[1688242543541,0.00755278,1925.1,1924.8,6.391902]
[1688242543861,6.95217,1925.3,1924.8,6.391902]
[1688242543862,1.7581,1925.3,1924.8,6.391902]
[1688242544093,6.95209,1925.3,1924.8,6.392052]
[1688242544768,0.00756208,1925.2,1924.8,1.196722]
[1688242545561,5.20187208,1925.2,1924.8,1.196722]
[1688242554591,13.08370392,1925.2,1924.6,1.9562]
[1688242554754,4.42802184,1925.1,1924.5,11.33596]
[1688242555090,5.19487,1925.0,1924.5,11.33596]
[1688242555305,2.68752184,1925.0,1924.5,11.33596]
[1688242555492,2.68752184,1925.0,1924.5,15.48813]
[1688242555662,14.32217,1925.1,1924.5,17.036943]
[1688242555870,0.00724797,1924.9,1924.5,17.036943]
[1688242556906,3.9328,1925.1,1924.5,17.036943]
[1688242557771,0.00725728,1925.0,1924.5,17.036943]
[1688242558071,0.00725728,1925.0,1924.5,17.44835615]
[1688242558285,0.00725728,1925.0,1924.6,1.74483562]
[1688242558489,0.00725728,1925.0,1924.6,12.13628562]
[1688242580624,0.00725728,1925.0,1924.6,13.08028562]
[1688242584218,0.00725728,1925.0,1924.6,12.13628562]
[1688242588225,0.00725728,1925.0,1924.6,14.73422562]
[1688242588437,0.00725728,1925.0,1924.7,1.47342256]
[1688242588637,0.00725728,1925.0,1924.7,11.86439256]
[1688242598360,0.00725728,1925.0,1924.7,6.66880256]
[1688242598953,0.00725728,1925.0,1924.7,11.86441256]
[1688242599458,0.00725728,1925.0,1924.7,14.46221256]
[1688242599662,0.00725728,1925.0,1924.8,11.83659126]
[1688242599823,3.7754,1925.3,1924.8,11.83659126]
[1688242600023,6.46292184,1925.3,1924.8,11.83659126]
[1688242600244,6.46292184,1925.3,1924.8,13.46739126]
[1688242600830,0.00699902,1925.2,1924.8,13.46739126]
[1688242601042,0.00699902,1925.2,1924.9,1.08845113]
[1688242607683,0.00699902,1925.2,1924.8,13.46739126]
[1688242614093,0.00699902,1925.2,1924.8,17.43660648]
[1688242614300,0.00699902,1925.2,1924.9,1.38270734]
[1688242614605,0.00699902,1925.2,1925.0,5.1948]
[1688242614801,9.44046047,1925.6,1924.9,5.19485]
[1688242614996,3.63156789,1925.5,1924.9,6.13685]
[1688242615205,3.63156789,1925.5,1924.9,11.33192]
[1688242615570,5.23206789,1925.5,1924.9,11.33192]
[1688242616037,0.00615376,1925.4,1924.9,11.33192]
[1688242616435,4.2441756,1925.5,1924.9,11.33192]
[1688242616749,4.2441756,1925.5,1925.0,1.133192]
[1688242617057,0.00591707,1925.4,1925.0,1.133192]
[1688242624839,4.10009267,1925.5,1925.0,1.133192]
[1688242625327,4.10009267,1925.5,1925.0,2.761192]
[1688242625931,0.00568949,1925.4,1925.0,2.761192]
[1688242626607,0.00568949,1925.4,1925.1,0.2761192]
[1688242626813,2.138,1925.6,1925.1,0.2761192]
[1688242627039,9.0912,1925.6,1925.1,1.9156192]
[1688242627960,0.0056988,1925.5,1925.1,1.9156192]
[1688242638811,0.0056988,1925.5,1925.1,1.6395]
[1688242639024,7.88669064,1925.5,1925.0,0.40823736]
[1688242639344,7.88669064,1925.5,1924.9,1.5963]
[1688242639515,8.82969064,1925.5,1924.9,1.5963]
[1688242639718,3.5704909,1925.4,1924.7,16.41550129]
[1688242639933,11.74282184,1925.4,1924.8,5.4989882]
[1688242640109,11.74282184,1925.4,1924.8,4.5963]
[1688242640312,11.74282184,1925.4,1924.8,9.79152]
[1688242640942,0.00568019,1925.3,1924.8,9.79152]
[1688242641819,0.00568019,1925.3,1924.8,14.98686]
[1688242642017,0.00568019,1925.3,1924.9,1.498686]
[1688242642851,6.54892184,1925.4,1924.9,1.498686]
[1688242643151,6.54892184,1925.4,1924.8,14.98686]
[1688242643444,6.54892184,1925.4,1924.8,9.79152]
[1688242643803,0.00544011,1925.3,1924.8,9.79152]
[1688242648466,0.00544011,1925.3,1924.8,1.5963]
[1688242648659,0.00544011,1925.3,1924.7,8.75166914]
[1688242648955,0.00544011,1925.3,1924.8,1.77788494]
[1688242649164,0.00544011,1925.3,1924.8,0.87516691]
[1688242649670,5.19944011,1925.3,1924.8,0.87516691]
[1688242650967,0.00544011,1925.3,1924.8,0.87516691]
[1688242653279,0.00544011,1925.3,1924.8,6.07048691]
[1688242658795,0.00544011,1925.3,1924.9,0.90272347]
[1688242659207,1.18025831,1925.3,1924.9,0.90272347]
[1688242659357,0.00544011,1925.3,1924.9,0.90272347]
[1688242659864,11.74274184,1925.4,1924.9,0.90272347]
[1688242660993,0.00544011,1925.3,1924.9,0.90272347]
[1688242661809,11.74274184,1925.4,1924.9,0.90272347]
[1688242663013,0.00544011,1925.3,1924.9,0.90272347]
[1688242663874,11.74274184,1925.4,1924.9,0.90272347]
[1688242664075,1.17427418,1925.3,1924.9,0.90272347]
[1688242664292,11.74274184,1925.4,1924.9,0.90272347]
[1688242664589,11.74274184,1925.4,1924.9,2.51882347]
[1688242664789,0.0052239,1925.3,1924.9,1.6161]
[1688242665768,11.74274184,1925.4,1924.9,1.6161]
[1688242666795,0.0052239,1925.3,1924.9,1.6161]
[1688242667778,16.93658184,1925.4,1924.9,1.6161]
[1688242667983,1.69365818,1925.3,1924.9,1.6161]
[1688242668171,2.68752184,1925.2,1924.8,0.54548439]
[1688242668379,13.07605184,1925.2,1924.7,0.95621785]
[1688242668574,13.07605184,1925.2,1924.8,0.90276864]
[1688242668575,17.01015184,1925.2,1924.8,0.90276864]
[1688242668891,6.50738405,1925.1,1924.8,0.90276864]
[1688242669095,2.68752184,1925.0,1924.6,8.08418098]
[1688242669292,2.68752184,1925.0,1924.7,0.90277302]
[1688242669988,0.00519026,1924.9,1924.7,0.90277302]
[1688242671486,0.00519026,1924.9,1924.7,6.09836302]
[1688242671691,0.00519026,1924.9,1924.7,5.19559]
[1688242672045,0.00519026,1924.9,1924.6,12.86847682]
[1688242672196,0.00519026,1924.9,1924.7,0.90279237]
[1688242673291,0.00519026,1924.9,1924.7,6.09838237]
[1688242673510,0.00519026,1924.9,1924.6,14.59194416]
[1688242673681,0.00519026,1924.9,1924.7,0.90279312]
[1688242677842,9.12836,1925.2,1924.7,0.90279312]
[1688242678016,2.68752184,1925.1,1924.7,0.90279312]
[1688242679053,0.00519956,1925.0,1924.7,0.90279312]
[1688242679239,0.00519956,1925.0,1924.7,6.09840312]
[1688242679441,0.00519956,1925.0,1924.7,5.19561]
[1688242679751,0.00519956,1925.0,1924.6,14.98744977]
[1688242679962,0.00519956,1925.0,1924.6,9.79167977]
[1688242680254,0.00519956,1925.0,1924.6,14.98744977]
[1688242681918,0.00519956,1925.0,1924.7,0.90279568]
[1688242682619,0.00519956,1925.0,1924.6,9.79167977]
[1688242682942,0.00519956,1925.0,1924.7,0.97916798]
[1688242688832,0.00519956,1925.0,1924.7,6.17477798]
[1688242690025,0.00519956,1925.0,1924.7,0.97916798]
[1688242694490,0.00519956,1925.0,1924.7,6.17474798]
[1688242704002,0.00519956,1925.0,1924.7,0.97916798]
[1688242704907,0.00519956,1925.0,1924.7,6.17477798]
[1688242711008,0.00519956,1925.0,1924.8,0.6174778]
[1688242711913,9.12836,1925.2,1924.8,0.6174778]
[1688242712121,9.12836,1925.2,1924.7,11.37038798]
[1688242712317,9.12836,1925.2,1924.8,0.90276657]
[1688242712814,0.00520887,1925.1,1924.8,0.90276657]
[1688242713908,9.12836,1925.2,1924.8,0.90276657]
[1688242714800,0.00520887,1925.1,1924.8,0.90276657]
[1688242715027,0.00520887,1925.1,1924.8,2.18461346]
[1688242715213,0.00520887,1925.1,1924.8,1.28184689]
[1688242715894,9.12836,1925.2,1924.8,1.28184689]
[1688242716096,9.12836,1925.2,1924.7,11.91570237]
[1688242716295,9.12836,1925.2,1924.8,0.90276536]
[1688242716933,0.00520887,1925.1,1924.8,0.90276536]
[1688242717835,9.12836,1925.2,1924.8,0.90276536]
[1688242718848,0.00520887,1925.1,1924.8,0.90276536]
[1688242719898,9.12836,1925.2,1924.8,0.90276536]
[1688242720900,0.00520887,1925.1,1924.8,0.90276536]
[1688242721842,9.12836,1925.2,1924.8,0.90276536]
[1688242722840,0.00520887,1925.1,1924.8,0.90276536]